[Event "12th Arad Open 2019"]
[Site "Arad"]
[Date "2019.07.31"]
[Round "9.33"]
[White "Manea, Alexandru"]
[Black "Obada, Ema"]
[Result "1-0"]
[ECO "C00"]
[WhiteElo "2333"]
[BlackElo "1946"]
[Annotator "NA"]
[PlyCount "115"]
[EventDate "2019.07.24"]
[EventType "swiss"]
[EventCountry "ROU"]
[SourceTitle "playchess.com"]
[Source "ChessBase"]
[SourceQuality "1"]
[TimeControl "40/5400+30:900+30"]

1. e4 {[%emt 0:23:48]} e6 {[%emt 0:00:00]} 2. Qe2 {[%emt 0:00:29]} c5 {[%emt 0:00:26]} 3. Nf3 {[%emt 0:00:08]} Nc6 {[%emt 0:00:06]} 4. g3 {[%emt 0:00:05]} Be7 {[%emt 0:02:09]} 5. Bg2 {[%emt 0:00:14]} d5 {[%emt 0:00:08]} 6. e5 {[%emt 0:02:49]} Nh6 {[%emt 0:00:41]} 7. d3 {[%emt 0:00:05]} Nf5 {[%emt 0:00:17]} 8. c3 {[%emt 0:00:02]} b5 {[%emt 0:00:30]} 9. h4 {[%emt 0:00:08]} b4 {[%emt 0:02:06]} 10. h5 {[%emt 0:00:09]} h6 {[%emt 0:00:08]} 11. g4 {[%emt 0:00:40]} Nh4 {[%emt 0:00:10]} 12. Nxh4 {[%emt 0:00:05]} Bxh4 {[%emt 0:00:04]} 13. Nd2 {[%emt 0:00:06]} Bg5 {[%emt 0:01:41]} 14. O-O {[%emt 0:02:11]} Qc7 {[%emt 0:18:17]} 15. f4 {[%emt 0:07:34]} Be7 {[%emt 0:01:09]} 16. Nf3 {[%emt 0:00:10]} Bd7 {[%emt 0:00:17]} 17. Be3 {[%emt 0:01:14]} Qa5 {[%emt 0:05:26]} 18. c4 {[%emt 0:03:35]} d4 {[%emt 0:01:36]} 19. Bf2 {[%emt 0:00:03]} Qc7 {[%emt 0:00:39]} 20. Bg3 {[%emt 0:00:33]} O-O-O {[%emt 0:01:48]} 21. a3 {[%emt 0:00:08]} g6 {[%emt 0:00:24]} 22. hxg6 {[%emt 0:04:20]} fxg6 {[%emt 0:00:06]} 23. Qe4 {[%emt 0:00:04]} b3 {[%emt 0:08:10]} 24. Nh4 {[%emt 0:02:31]} Bxh4 {[%emt 0:06:50]} 25. Bxh4 {[%emt 0:03:31]} Rdg8 {[%emt 0:08:18]} 26. Bf6 {[%emt 0:07:23]} Rh7 {[%emt 0:00:12]} 27. Kf2 {[%emt 0:02:16]} h5 {[%emt 0:00:29]} 28. Rh1 {[%emt 0:01:01]} Be8 {[%emt 0:00:20]} 29. Bf3 {[%emt 0:00:06]} Kb7 {[%emt 0:09:34]} 30. Rag1 {[%emt 0:06:53]} hxg4 {[%emt 0:01:04]} 31. Bxg4 {[%emt 0:01:31]} Rxh1 {[%emt 0:00:35]} 32. Rxh1 {[%emt 0:00:04]} Qd7 {[%emt 0:00:33]} 33. Rh6 {[%emt 0:00:45]} Kb6 {[%emt 0:01:40]} 34. Qh1 {[%emt 0:01:31]} a5 {[%emt 0:02:58]} 35. Rh7 {[%emt 0:00:38]} Bf7 {[%emt 0:00:03]} 36. Qh3 {[%emt 0:00:11]} Re8 {[%emt 0:00:17]} 37. Rg7 {[%emt 0:00:35]} a4 {[%emt 0:00:37]} 38. Qh7 {[%emt 0:02:16]} Rf8 {[%emt 0:00:05]} 39. Bf3 {[%emt 0:00:04]} Qe8 {[%emt 0:00:43]} 40. Qh1 {[%emt 0:00:00]} Rh8 {[%emt 0:00:00]} 41. Qg2 {[%emt 0:10:36]} Ne7 {[%emt 0:07:37]} 42. Rxf7 {[%emt 0:22:15]} Qxf7 {[%emt 0:00:04]} 43. Bxh8 {[%emt 0:00:05]} Qxf4 {[%emt 0:00:04]} 44. Bf6 {[%emt 0:00:04]} Nf5 {[%emt 0:01:02]} 45. Bd8+ {[%emt 0:05:30]} Ka7 {[%emt 0:02:00]} 46. Bg5 {[%emt 0:00:09]} Qxe5 {[%emt 0:00:32]} 47. Qh3 {[%emt 0:01:08]} Ng7 {[%emt 0:02:12]} 48. Qg3 {[%emt 0:01:27]} Qxg3+ {[%emt 0:02:11]} 49. Kxg3 {[%emt 0:00:28]} Nf5+ {[%emt 0:00:35]} 50. Kf4 {[%emt 0:00:13]} Ne3 {[%emt 0:00:44]} 51. Ke4 {[%emt 0:03:24]} Nc2 {[%emt 0:01:00]} 52. Bd1 {[%emt 0:00:09]} Ne1 {[%emt 0:00:30]} 53. Bd2 {[%emt 0:01:08]} Ng2 {[%emt 0:00:04]} 54. Ke5 {[%emt 0:01:03]} Kb6 {[%emt 0:00:45]} 55. Kxe6 {[%emt 0:00:13]} Kc7 {[%emt 0:00:08]} 56. Kd5 {[%emt 0:00:45]} Kb6 {[%emt 0:00:08]} 57. Bf3 {[%emt 0:01:15]} Nh4 {[%emt 0:00:03]} 58. Be4 1-0

[Event "12th Arad Open 2019"]
[Site "Arad"]
[Date "2019.07.31"]
[Round "9.35"]
[White "Ghimpu, Samuel-Timotei"]
[Black "Breitkopf, Francisc"]
[Result "1-0"]
[ECO "C50"]
[WhiteElo "2193"]
[BlackElo "1994"]
[Annotator "NA"]
[PlyCount "83"]
[EventDate "2019.07.24"]
[EventType "swiss"]
[EventCountry "ROU"]
[SourceTitle "playchess.com"]
[Source "ChessBase"]
[SourceQuality "1"]
[TimeControl "40/5400+30:900+30"]

1. e4 {[%emt 0:06:59]} e5 {[%emt 0:00:00]} 2. Nf3 {[%emt 0:00:14]} Nc6 {[%emt 0:00:08]} 3. Bc4 {[%emt 0:00:08]} Be7 {[%emt 0:00:18]} 4. O-O {[%emt 0:00:42]} Nf6 {[%emt 0:02:39]} 5. Re1 {[%emt 0:00:57]} d6 {[%emt 0:00:21]} 6. h3 {[%emt 0:00:17]} Na5 {[%emt 0:03:55]} 7. Bf1 {[%emt 0:03:05]} c5 {[%emt 0:01:14]} 8. c3 {[%emt 0:00:10]} O-O {[%emt 0:05:07]} 9. d4 {[%emt 0:00:28]} Qc7 {[%emt 0:09:10]} 10. Na3 {[%emt 0:03:20]} a6 {[%emt 0:05:14]} 11. b4 {[%emt 0:04:50]} cxb4 {[%emt 0:06:08]} 12. cxb4 {[%emt 0:00:13]} Nc6 {[%emt 0:03:00]} 13. d5 {[%emt 0:15:54]} Nxb4 {[%emt 0:03:13]} 14. Bd2 {[%emt 0:01:51]} a5 {[%emt 0:03:36]} 15. Nc4 {[%emt 0:00:40]} b6 {[%emt 0:11:39]} 16. Rc1 {[%emt 0:05:22]} Qb8 {[%emt 0:02:11]} 17. a3 {[%emt 0:02:32]} Na6 {[%emt 0:11:41]} 18. Rb1 {[%emt 0:00:25]} Bd8 {[%emt 0:09:09]} 19. Bxa5 {[%emt 0:02:11]} b5 {[%emt 0:11:16]} 20. a4 {[%emt 0:10:41]} Bxa5 {[%emt 0:02:53]} 21. Nxa5 {[%emt 0:00:41]} Nc5 {[%emt 0:00:54]} 22. Nc6 {[%emt 0:01:44]} Qc7 {[%emt 0:00:32]} 23. axb5 {[%emt 0:01:08]} Nfxe4 {[%emt 0:00:19]} 24. b6 {[%emt 0:01:39]} Qb7 {[%emt 0:00:47]} 25. Nd2 {[%emt 0:00:31]} Nc3 {[%emt 0:00:25]} 26. Qf3 {[%emt 0:01:17]} Nxb1 {[%emt 0:01:08]} 27. Rxb1 {[%emt 0:00:01]} Ra4 {[%emt 0:02:46]} 28. Nc4 {[%emt 0:13:28]} Qd7 {[%emt 0:00:06]} 29. Qc3 {[%emt 0:06:22]} Bb7 {[%emt 0:00:14]} 30. N4xe5 {[%emt 0:00:12]} dxe5 {[%emt 0:01:24]} 31. Qxc5 {[%emt 0:00:01]} Re8 {[%emt 0:01:16]} 32. Bb5 {[%emt 0:00:19]} Qf5 {[%emt 0:00:17]} 33. Rf1 {[%emt 0:01:11]} Raa8 {[%emt 0:01:54]} 34. d6 {[%emt 0:02:22]} Qg5 {[%emt 0:00:03]} 35. g3 {[%emt 0:01:14]} Bc8 {[%emt 0:01:23]} 36. Ne7+ {[%emt 0:00:17]} Kh8 {[%emt 0:00:18]} 37. Nxc8 {[%emt 0:01:38]} Rexc8 {[%emt 0:00:19]} 38. b7 {[%emt 0:00:06]} Rd8 {[%emt 0:00:52]} 39. bxa8=Q {[%emt 0:00:15]} Rxa8 {[%emt 0:00:01]} 40. d7 {[%emt 0:00:00]} h5 {[%emt 0:00:00]} 41. Qc8+ {[%emt 0:00:32]} Qd8 {[%emt 0:00:17]} 42. Qxd8+ {[%emt 0:00:18]} 1-0

[Event "12th Arad Open 2019"]
[Site "Arad"]
[Date "2019.07.31"]
[Round "9.36"]
[White "Weinzettl, Ernst"]
[Black "Magold, Victor"]
[Result "1-0"]
[ECO "B24"]
[WhiteElo "2165"]
[BlackElo "1962"]
[Annotator "NA"]
[PlyCount "55"]
[EventDate "2019.07.24"]
[EventType "swiss"]
[EventCountry "ROU"]
[SourceTitle "playchess.com"]
[Source "ChessBase"]
[SourceQuality "1"]
[TimeControl "40/5400+30:900+30"]

1. e4 {[%emt 0:00:00]} c5 {[%emt 0:00:00]} 2. Nc3 {[%emt 0:01:13]} Nc6 {[%emt 0:01:03]} 3. Bb5 {[%emt 0:00:59]} Na5 {[%emt 0:02:37]} 4. Be2 {[%emt 0:04:31]} a6 {[%emt 0:01:50]} 5. d4 {[%emt 0:11:40]} cxd4 {[%emt 0:00:19]} 6. Qxd4 {[%emt 0:00:04]} Nc6 {[%emt 0:01:30]} 7. Qd3 {[%emt 0:00:10]} d6 {[%emt 0:00:21]} 8. Be3 {[%emt 0:00:31]} g6 {[%emt 0:00:26]} 9. Nd5 {[%emt 0:00:42]} Be6 {[%emt 0:19:33]} 10. Bb6 {[%emt 0:13:12]} Qc8 {[%emt 0:00:05]} 11. Nc7+ {[%emt 0:00:28]} Kd7 {[%emt 0:00:03]} 12. Nxa8 {[%emt 0:20:16]} Nb4 {[%emt 0:05:26]} 13. Qc3 {[%emt 0:00:10]} Qxc3+ {[%emt 0:00:40]} 14. bxc3 {[%emt 0:00:05]} Nxc2+ {[%emt 0:00:05]} 15. Kd1 {[%emt 0:00:15]} Nxa1 {[%emt 0:00:05]} 16. Bd4 {[%emt 0:13:39]} Nf6 {[%emt 0:01:01]} 17. Nb6+ {[%emt 0:02:12]} Kc7 {[%emt 0:00:49]} 18. Nd5+ {[%emt 0:15:40]} Bxd5 {[%emt 0:00:42]} 19. exd5 {[%emt 0:00:03]} Bh6 {[%emt 0:05:09]} 20. c4 {[%emt 0:02:04]} Rb8 {[%emt 0:02:21]} 21. Bxa1 {[%emt 0:00:36]} b5 {[%emt 0:00:12]} 22. Bxf6 {[%emt 0:02:45]} exf6 {[%emt 0:00:13]} 23. Nf3 {[%emt 0:00:34]} bxc4 {[%emt 0:00:08]} 24. Kc2 {[%emt 0:00:06]} Rb5 {[%emt 0:00:42]} 25. Bxc4 {[%emt 0:00:16]} Rc5 {[%emt 0:00:05]} 26. Kd3 {[%emt 0:00:13]} f5 {[%emt 0:01:35]} 27. Nd4 {[%emt 0:00:36]} Kd8 {[%emt 0:03:57]} 28. Rb1 {[%emt 0:00:30]} 1-0

[Event "12th Arad Open 2019"]
[Site "Arad"]
[Date "2019.07.31"]
[Round "9.37"]
[White "Isfan, Ioan-Marius"]
[Black "Panush, Viktor"]
[Result "1-0"]
[ECO "A48"]
[WhiteElo "2164"]
[BlackElo "1957"]
[Annotator "NA"]
[PlyCount "77"]
[EventDate "2019.07.24"]
[EventType "swiss"]
[EventCountry "ROU"]
[SourceTitle "playchess.com"]
[Source "ChessBase"]
[SourceQuality "1"]
[TimeControl "40/5400+30:900+30"]

1. d4 {[%emt 0:00:00]} Nf6 {[%emt 0:00:42]} 2. Nf3 {[%emt 0:00:00]} g6 {[%emt 0:00:52]} 3. Nbd2 {[%emt 0:00:04]} Bg7 {[%emt 0:00:27]} 4. e4 {[%emt 0:00:07]} d6 {[%emt 0:00:18]} 5. Bd3 {[%emt 0:00:17]} O-O {[%emt 0:00:16]} 6. O-O {[%emt 0:00:05]} c5 {[%emt 0:02:07]} 7. c3 {[%emt 0:02:19]} Qc7 {[%emt 0:02:44]} 8. Re1 {[%emt 0:07:26]} cxd4 {[%emt 0:13:29]} 9. cxd4 {[%emt 0:00:11]} Nc6 {[%emt 0:00:16]} 10. a3 {[%emt 0:00:33]} Nd7 {[%emt 0:05:10]} 11. Nb3 {[%emt 0:01:59]} a5 {[%emt 0:01:20]} 12. Be3 {[%emt 0:00:58]} a4 {[%emt 0:01:02]} 13. Nbd2 {[%emt 0:00:06]} e5 {[%emt 0:02:34]} 14. Rc1 {[%emt 0:05:00]} exd4 {[%emt 0:05:13]} 15. Nxd4 {[%emt 0:00:43]} Nc5 {[%emt 0:00:57]} 16. Nb5 {[%emt 0:00:13]} Qe7 {[%emt 0:01:02]} 17. Nc4 {[%emt 0:06:22]} Ne5 {[%emt 0:04:40]} 18. Bxc5 {[%emt 0:08:21]} dxc5 {[%emt 0:01:15]} 19. Nb6 {[%emt 0:00:07]} Qd8 {[%emt 0:05:22]} 20. Nd5 {[%emt 0:03:30]} b6 {[%emt 0:01:08]} 21. Bf1 {[%emt 0:02:23]} Bb7 {[%emt 0:04:30]} 22. f4 {[%emt 0:05:25]} Nc6 {[%emt 0:01:55]} 23. e5 {[%emt 0:00:13]} Nd4 {[%emt 0:05:09]} 24. Ndc7 {[%emt 0:02:41]} Rb8 {[%emt 0:02:34]} 25. Nxd4 {[%emt 0:00:26]} Qxc7 {[%emt 0:02:03]} 26. Nb5 {[%emt 0:00:16]} Qc6 {[%emt 0:02:58]} 27. Qxa4 {[%emt 0:01:19]} Rbd8 {[%emt 0:03:00]} 28. Rc2 {[%emt 0:01:41]} Rd7 {[%emt 0:04:34]} 29. Qb3 {[%emt 0:00:15]} Rfd8 {[%emt 0:01:57]} 30. Nd6 {[%emt 0:07:43]} Rxd6 {[%emt 0:00:38]} 31. exd6 {[%emt 0:00:03]} Qxd6 {[%emt 0:00:48]} 32. Kh1 {[%emt 0:05:03]} Bd4 {[%emt 0:07:09]} 33. Bc4 {[%emt 0:11:41]} Rf8 {[%emt 0:00:43]} 34. Rce2 {[%emt 0:05:18]} Bc6 {[%emt 0:02:13]} 35. Rf1 {[%emt 0:01:57]} Kg7 {[%emt 0:01:42]} 36. f5 {[%emt 0:01:04]} g5 {[%emt 0:02:44]} 37. f6+ {[%emt 0:01:36]} Kg8 {[%emt 0:04:16]} 38. Qh3 {[%emt 0:00:13]} Rd8 {[%emt 0:01:48]} 39. Bxf7+ {[%emt 0:01:19]} 1-0

[Event "12th Arad Open 2019"]
[Site "Arad"]
[Date "2019.07.31"]
[Round "9.38"]
[White "Dobre, Radu-Fabian"]
[Black "Markovic, Franjo-Josip"]
[Result "1-0"]
[ECO "C02"]
[WhiteElo "2004"]
[BlackElo "2160"]
[Annotator "NA"]
[PlyCount "61"]
[EventDate "2019.07.24"]
[EventType "swiss"]
[EventCountry "ROU"]
[SourceTitle "playchess.com"]
[Source "ChessBase"]
[SourceQuality "1"]
[TimeControl "40/5400+30:900+30"]

1. e4 {[%emt 0:00:00]} e6 {[%emt 0:10:34]} 2. d4 {[%emt 0:00:00]} d5 {[%emt 0:00:05]} 3. e5 {[%emt 0:00:00]} c5 {[%emt 0:00:07]} 4. c3 {[%emt 0:00:00]} Nc6 {[%emt 0:00:05]} 5. Nf3 {[%emt 0:00:00]} Bd7 {[%emt 0:00:08]} 6. a3 {[%emt 0:00:16]} Nge7 {[%emt 0:00:49]} 7. Be3 {[%emt 0:00:22]} Nf5 {[%emt 0:00:16]} 8. Bd3 {[%emt 0:00:05]} Nxe3 {[%emt 0:02:14]} 9. fxe3 {[%emt 0:00:07]} Be7 {[%emt 0:00:41]} 10. O-O {[%emt 0:01:19]} O-O {[%emt 0:00:24]} 11. Nbd2 {[%emt 0:02:21]} f6 {[%emt 0:00:40]} 12. exf6 {[%emt 0:00:39]} Bxf6 {[%emt 0:01:03]} 13. Qc2 {[%emt 0:00:45]} h6 {[%emt 0:00:52]} 14. dxc5 {[%emt 0:00:22]} e5 {[%emt 0:04:03]} 15. e4 {[%emt 0:00:22]} d4 {[%emt 0:00:27]} 16. cxd4 {[%emt 0:02:37]} Nxd4 {[%emt 0:02:21]} 17. Nxd4 {[%emt 0:00:11]} exd4 {[%emt 0:00:06]} 18. Qc4+ {[%emt 0:00:09]} Kh8 {[%emt 0:00:19]} 19. Qd5 {[%emt 0:00:17]} Qc7 {[%emt 0:00:59]} 20. Nf3 {[%emt 0:01:14]} Bc6 {[%emt 0:02:17]} 21. Qh5 {[%emt 0:00:21]} Be8 {[%emt 0:00:23]} 22. Qg4 {[%emt 0:03:34]} Qxc5 {[%emt 0:02:25]} 23. e5 {[%emt 0:01:00]} Be7 {[%emt 0:00:41]} 24. Qe4 {[%emt 0:02:05]} g6 {[%emt 0:00:18]} 25. Rac1 {[%emt 0:01:01]} Qb6 {[%emt 0:00:14]} 26. Nh4 {[%emt 0:00:55]} Rxf1+ {[%emt 0:04:29]} 27. Rxf1 {[%emt 0:00:01]} Kg7 {[%emt 0:01:23]} 28. e6 {[%emt 0:00:48]} Bxh4 {[%emt 0:04:38]} 29. Qxh4 {[%emt 0:00:25]} Qxe6 {[%emt 0:00:21]} 30. Qxd4+ {[%emt 0:00:01]} Kh7 {[%emt 0:03:47]} 31. Rf8 {[%emt 0:00:02]} 1-0

[Event "12th Arad Open 2019"]
[Site "Arad"]
[Date "2019.07.31"]
[Round "9.39"]
[White "Dobrin, Ionut-Alexandru"]
[Black "Turlea, Constantin"]
[Result "1-0"]
[ECO "E81"]
[WhiteElo "2142"]
[BlackElo "1938"]
[Annotator "NA"]
[PlyCount "83"]
[EventDate "2019.07.24"]
[EventType "swiss"]
[EventCountry "ROU"]
[SourceTitle "playchess.com"]
[Source "ChessBase"]
[SourceQuality "1"]
[TimeControl "40/5400+30:900+30"]

1. d4 {[%emt 0:05:30]} Nf6 {[%emt 0:24:27]} 2. c4 {[%emt 0:00:23]} g6 {[%emt 0:00:14]} 3. Nc3 {[%emt 0:00:14]} Bg7 {[%emt 0:00:05]} 4. e4 {[%emt 0:00:03]} d6 {[%emt 0:00:07]} 5. f3 {[%emt 0:00:04]} O-O {[%emt 0:00:10]} 6. Bg5 {[%emt 0:00:03]} c5 {[%emt 0:00:15]} 7. d5 {[%emt 0:00:05]} e6 {[%emt 0:00:39]} 8. Qd2 {[%emt 0:00:14]} exd5 {[%emt 0:00:06]} 9. cxd5 {[%emt 0:00:04]} h6 {[%emt 0:00:06]} 10. Be3 {[%emt 0:00:10]} h5 {[%emt 0:00:39]} 11. Bd3 {[%emt 0:05:17]} Re8 {[%emt 0:01:15]} 12. Nge2 {[%emt 0:00:22]} a6 {[%emt 0:00:06]} 13. a4 {[%emt 0:00:10]} Nbd7 {[%emt 0:00:15]} 14. O-O {[%emt 0:00:54]} Rb8 {[%emt 0:00:20]} 15. Rfb1 {[%emt 0:04:35]} Ne5 {[%emt 0:04:00]} 16. b4 {[%emt 0:06:26]} Nxd3 {[%emt 0:03:13]} 17. Qxd3 {[%emt 0:00:20]} Nd7 {[%emt 0:02:09]} 18. bxc5 {[%emt 0:04:44]} Nxc5 {[%emt 0:02:35]} 19. Bxc5 {[%emt 0:01:34]} dxc5 {[%emt 0:00:07]} 20. Ra2 {[%emt 0:12:06]} Bd7 {[%emt 0:09:40]} 21. a5 {[%emt 0:10:30]} Qc7 {[%emt 0:16:59]} 22. Qc4 {[%emt 0:07:09]} Be5 {[%emt 0:08:31]} 23. g3 {[%emt 0:02:21]} h4 24. f4 {[%emt 0:01:34]} Bg7 {[%emt 0:03:34]} 25. Rb6 {[%emt 0:05:45]} hxg3 {[%emt 0:04:25]} 26. hxg3 {[%emt 0:00:13]} Qc8 {[%emt 0:01:14]} 27. e5 {[%emt 0:04:11]} Bf5 {[%emt 0:03:43]} 28. Ne4 {[%emt 0:05:42]} Bxe4 {[%emt 0:00:25]} 29. Qxe4 {[%emt 0:00:02]} Qg4 {[%emt 0:00:28]} 30. e6 {[%emt 0:03:25]} fxe6 {[%emt 0:00:47]} 31. dxe6 {[%emt 0:01:08]} Rbd8 {[%emt 0:02:36]} 32. e7 {[%emt 0:02:10]} Rd1+ {[%emt 0:01:17]} 33. Kg2 {[%emt 0:00:27]} Qh5 {[%emt 0:01:39]} 34. Ng1 {[%emt 0:04:42]} Rxe7 {[%emt 0:07:19]} 35. Qxe7 {[%emt 0:01:28]} Qd5+ {[%emt 0:00:01]} 36. Kh3 {[%emt 0:01:04]} Qxa2 {[%emt 0:00:45]} 37. Qe8+ {[%emt 0:00:22]} Kh7 {[%emt 0:00:32]} 38. Qxg6+ {[%emt 0:00:05]} Kg8 {[%emt 0:00:15]} 39. Qe8+ {[%emt 0:00:03]} Kh7 {[%emt 0:00:06]} 40. Qh5+ {[%emt 0:00:00]} Kg8 {[%emt 0:00:00]} 41. Qxd1 {[%emt 0:00:38]} Qxa5 {[%emt 0:01:09]} 42. Qg4 1-0

[Event "12th Arad Open 2019"]
[Site "Arad"]
[Date "2019.07.31"]
[Round "9.40"]
[White "Ciorica, Mihai-Vlad"]
[Black "Anghel, Iulian-Mihai"]
[Result "*"]
[ECO "E20"]
[WhiteElo "2110"]
[BlackElo "1900"]
[Annotator "NA"]
[PlyCount "23"]
[EventDate "2019.07.24"]
[EventType "swiss"]
[EventCountry "ROU"]
[SourceTitle "playchess.com"]
[Source "ChessBase"]
[SourceQuality "1"]
[TimeControl "40/5400+30:900+30"]

1. d4 Nf6 2. c4 e6 3. Nc3 Bb4 4. f3 c5 5. d5 b5 6. e4 O-O 7. e5 Ne8 8. f4 exd5 9. cxd5 d6 10. Nf3 Nc7 11. Bd3 h6 12. Rg1 *

[Event "12th Arad Open 2019"]
[Site "Arad"]
[Date "2019.07.31"]
[Round "9.40"]
[White "Ciorica, Mihai-Vlad"]
[Black "Anghel, Iulian-Mihai"]
[Result "0-1"]
[ECO "E20"]
[WhiteElo "2110"]
[BlackElo "1900"]
[Annotator "NA"]
[PlyCount "62"]
[EventDate "2019.07.24"]
[EventType "swiss"]
[EventCountry "ROU"]
[SourceTitle "playchess.com"]
[Source "ChessBase"]
[SourceQuality "1"]
[TimeControl "40/5400+30:900+30"]

1. d4 Nf6 2. c4 e6 3. Nc3 Bb4 4. f3 c5 5. d5 b5 6. e4 O-O 7. e5 Ne8 8. f4 exd5 9. cxd5 d6 10. Nf3 Nc7 11. Bd3 h6 12. O-O Bxc3 13. bxc3 f5 14. c4 bxc4 15. Bxc4 Ba6 16. Bxa6 Nbxa6 17. Ba3 Kh8 18. e6 Qf6 19. Qd2 Rab8 20. Rab1 Nb5 21. Bb2 Qe7 22. a4 Nbc7 23. Bc3 Nb4 24. Bxb4 cxb4 25. Nd4 Nxd5 26. Nc6 Qxe6 27. Nxb8 Rxb8 28. Rfe1 Qf7 29. Rbd1 Nc3 30. Qxd6 Rb7 31. Rd3 Ne4 0-1